fUST/lending_fUST_20240502
["ID","MTS","AMOUNT","RATE_DAILY","PERIOD"]
[325202477,1714579271725,-3822.44,0.00053424,120]
[325202478,1714579271748,-500.0,0.00053424,120]
[325202479,1714579271772,-500.0,0.00053424,120]
[325202480,1714579271796,-500.0,0.00053424,120]
[325202481,1714579271820,-837.45,0.00053424,120]
[325202482,1714579271845,-500.0,0.00053424,120]
[325202483,1714579271870,-500.0,0.00053424,120]
[325202484,1714579271895,-500.0,0.00053424,120]
[325202485,1714579271917,-500.0,0.00053424,120]
[325202486,1714579271940,-564.58411584,0.00053424,120]
[325202487,1714579271966,-1269.54,0.00053424,120]
[325202488,1714579271988,-500.0,0.00053424,120]
[325202489,1714579272012,-738.55,0.00053424,120]
[325202490,1714579272035,-500.0,0.00053424,120]
[325202491,1714579272058,-500.0,0.00053424,120]
[325202492,1714579272081,-500.0,0.00053424,120]
[325202493,1714579272111,-500.0,0.00053424,120]
[325202494,1714579272135,-516.36,0.00053424,120]
[325202495,1714579272158,-500.0,0.00053424,120]
[325202496,1714579272186,-519.57,0.00053424,120]
[325202497,1714579272212,-500.0,0.00053424,120]
[325202498,1714579272235,-500.0,0.00053424,120]
[325202499,1714579272258,-500.0,0.00053424,120]
[325202500,1714579272281,-500.0,0.00053424,120]
[325202501,1714579272305,-505.21605141,0.00053424,120]
[325202502,1714579272328,-500.0,0.00053424,120]
[325202503,1714579272352,-500.0,0.00053424,120]
[325202504,1714579272377,-587.62,0.00053424,120]
[325202505,1714579272401,-500.0,0.00053424,120]
[325202506,1714579272427,-500.0,0.00053424,120]
[325202507,1714579272455,-561.38,0.00053424,120]
[325202508,1714579272478,-500.0,0.00053424,120]
[325202509,1714579272501,-860.05,0.00053424,120]
[325202510,1714579272527,-500.0,0.00053424,120]
[325202511,1714579272554,-500.0,0.00053424,120]
[325202512,1714579272578,-500.0,0.00053424,120]
[325202513,1714579272603,-500.0,0.00053424,120]
[325202514,1714579272628,-500.0,0.00053424,60]
[325202515,1714579272652,-500.0,0.00053424,120]
[325202516,1714579272676,-538.45,0.00053424,120]
[325202517,1714579272704,-500.0,0.00053424,120]
[325202518,1714579272728,-700.86,0.00053424,120]
[325202519,1714579272751,-500.0,0.00053424,120]
[325202520,1714579272774,-500.0,0.00053424,120]
[325202521,1714579272797,-500.0,0.00053424,120]
[325202522,1714579272821,-500.0,0.00053424,120]
[325202523,1714579272845,-695.31,0.00053424,120]
[325202524,1714579272869,-2303.99,0.00053424,120]
[325202525,1714579272892,-347.0968108,0.00053424,120]
[325202526,1714579272915,-819.39,0.00053424,120]
[325202527,1714579272938,-16438.4,0.00053424,120]
[325202528,1714579272966,-502.61652239,0.00053424,120]
[325202529,1714579273174,-500.0,0.00053424,120]
[325202530,1714579273208,-500.0,0.00053424,120]
[325202531,1714579273232,-753.78,0.00053424,120]
[325202532,1714579273258,-1384.19,0.00053424,120]
[325202533,1714579273284,-845.23,0.00053424,120]
[325202534,1714579273309,-1071.69,0.00053424,120]
[325202535,1714579273335,-519.97,0.00053424,120]
[325202536,1714579273359,-1275.21,0.00053424,120]
[325202537,1714579273384,-503.05835934,0.00053424,120]
[325202538,1714579273409,-500.0,0.00053424,120]
[325202539,1714579273434,-500.0,0.00053424,120]
[325202540,1714579273462,-500.0,0.00053424,120]
[325202541,1714579273487,-2108.59,0.00053424,120]
[325202542,1714579273512,-500.0,0.00053424,120]
[325202543,1714579273536,-500.0,0.00053424,120]
[325202544,1714579273561,-1163.83,0.00053424,120]
[325202545,1714579273585,-1307.73,0.00053424,120]
[325202546,1714579273609,-500.0,0.00053424,120]
[325202547,1714579273633,-500.0,0.00053424,120]
[325202548,1714579273657,-500.0,0.00053424,120]
[325202549,1714579273683,-500.0,0.00053424,120]
[325202550,1714579273711,-1260.61,0.00053424,120]
[325202551,1714579273735,-942.13,0.00053424,120]
[325202552,1714579273758,-500.0,0.00053424,120]
[325202553,1714579273781,-880.99,0.00053424,120]
[325202554,1714579273805,-500.0,0.00053424,120]
[325202555,1714579273829,-500.0,0.00053424,120]
[325202556,1714579273857,-500.0,0.00053424,120]
[325202557,1714579273883,-500.0,0.00053424,120]
[325202558,1714579273907,-10860.1,0.00053424,120]
[325202559,1714579273931,-531.19,0.00053424,120]
[325202560,1714579273959,-500.0,0.00053424,120]
[325202561,1714579273984,-366.82106429,0.00053424,120]
[325202562,1714579274007,-500.0,0.00053424,120]
[325202563,1714579274032,-500.0,0.00053424,120]
[325202564,1714579274056,-500.0,0.00053424,120]
[325202565,1714579274082,-2853.2,0.00053424,120]
[325202566,1714579274109,-500.0,0.00053424,120]
[325202567,1714579274135,-500.0,0.00053424,120]
[325202568,1714579274161,-500.0,0.00053424,120]
[325202569,1714579274187,-500.0,0.00053424,120]
[325202570,1714579274216,-500.0,0.00053424,120]
[325202571,1714579274240,-500.0,0.00053424,120]
[325202572,1714579274265,-1056.88,0.00053424,120]
[325202573,1714579274291,-1079.07,0.00053424,120]
[325202574,1714579274315,-1066.54,0.00053424,120]
[325202575,1714579274340,-500.0,0.00053424,60]
[325202576,1714579274364,-500.0,0.00053424,120]
[325202577,1714579274388,-1034.36,0.00053424,120]
[325202578,1714579274411,-500.0,0.00053424,120]
[325202579,1714579274434,-500.0,0.00053424,120]
[325202580,1714579274460,-550.63,0.00053424,120]
[325202581,1714579274484,-500.0,0.00053424,120]
[325202582,1714579274509,-1293.3,0.00053424,120]
[325202583,1714579274535,-501.37,0.00053424,120]
[325202584,1714579274560,-500.0,0.00053424,120]
[325202585,1714579274584,-500.0,0.00053424,120]
[325202586,1714579274609,-500.0,0.00053424,120]
[325202587,1714579274635,-500.0,0.00053424,120]
[325202588,1714579274658,-952.51,0.00053424,120]
[325202589,1714579274683,-500.0,0.00053424,120]
[325202590,1714579274709,-7803.89,0.00053424,120]
[325202591,1714579274733,-683.47,0.00053424,120]
[325202592,1714579274757,-500.0,0.00053424,120]
[325202593,1714579274782,-500.0,0.00053424,120]
[325202594,1714579274805,-500.0,0.00053424,120]
[325202595,1714579274830,-520.34770018,0.00053424,120]
[325202596,1714579274854,-500.0,0.00053424,120]
[325202597,1714579274879,-560.3,0.00053424,120]
[325202598,1714579274904,-1182.04,0.00053424,120]
[325202599,1714579274931,-500.0,0.00053424,120]
[325202600,1714579274956,-1509.57,0.00053424,120]
[325202601,1714579274981,-500.0,0.00053424,120]
[325202602,1714579275006,-1418.58,0.00053424,120]
[325202603,1714579275029,-2100.72,0.00053424,120]
[325202604,1714579275053,-500.0,0.00053424,120]
[325202605,1714579275077,-500.0,0.00053424,120]
[325202606,1714579275106,-4324.53,0.00053424,120]
[325202607,1714579275130,-1378.05,0.00053424,120]
[325202608,1714579275157,-500.0,0.00053424,120]
[325202609,1714579275182,-500.0,0.00053424,120]
[325202610,1714579275209,-4120.18,0.00053424,30]
[325202611,1714579275236,-500.0,0.00053424,120]
[325202612,1714579275261,-500.0,0.00053424,120]
[325202613,1714579275287,-500.0,0.00053424,120]
[325202614,1714579275311,-1042.05,0.00053424,120]
[325202615,1714579275336,-500.0,0.00053424,120]
[325202616,1714579275361,-500.0,0.00053424,120]
[325202617,1714579275386,-500.0,0.00053424,120]
[325202618,1714579275412,-500.0,0.00053424,120]
[325202619,1714579275437,-500.0,0.00053424,120]
[325202620,1714579275465,-500.0,0.00053424,120]
[325202621,1714579275492,-500.0,0.00053424,120]
[325202622,1714579275517,-500.0,0.00053424,120]
[325202623,1714579275542,-500.0,0.00053424,120]
[325202624,1714579275567,-657.91,0.00053424,120]
[325202625,1714579275591,-500.0,0.00053424,120]
[325202626,1714579275620,-1000.0,0.00053424,120]
[325202627,1714579275649,-500.0,0.00053424,120]
[325202628,1714579275678,-530.32,0.00053424,120]
[325202629,1714579275710,-358.81546573,0.00053424,120]
[325202630,1714579275737,-597.58,0.00053424,120]
[325202631,1714579275767,-520.41,0.00053424,120]
[325202632,1714579275796,-327.77346043,0.00053424,120]
[325202633,1714579275825,-500.0,0.00053424,120]
[325202634,1714579275859,-5596.87,0.00053424,120]
[325202635,1714579275887,-572.311321,0.00053425,120]
[325202636,1714579275916,-493.0,0.00053497,120]
[325202637,1714579275945,-607.67,0.00053627,30]
[325202638,1714579275981,-151.0,0.0005389,120]
[325202639,1714579276010,-500.0,0.00053972,120]
[325202640,1714579276039,-500.0,0.00053972,120]
[325202641,1714579276067,-261.48939397,0.00053972,120]
[325202642,1714579276099,-500.0,0.00053972,120]
[325202643,1714579276128,-500.0,0.00053972,120]
[325202644,1714579276156,-500.0,0.00053972,120]
[325202645,1714579276185,-396.5038095,0.00053972,120]
[325202646,1714579276216,-500.0,0.00053972,120]
[325202647,1714579276244,-500.0,0.00053972,120]
[325202648,1714579276273,-500.0,0.00053972,120]
[325202649,1714579276300,-502.4336532,0.00053972,120]
[325202650,1714579276328,-503.97923721,0.00053972,120]
[325202651,1714579276356,-760.73,0.00053972,120]
[325202652,1714579276386,-493.86637402,0.00053972,120]
[325202653,1714579276414,-500.0,0.00053972,120]
[325202654,1714579276439,-500.0,0.00053972,120]
[325202655,1714579276467,-500.0,0.00053972,120]
[325202656,1714579276493,-557.34398302,0.00053972,120]
[325202657,1714579276521,-500.0,0.00053972,120]
[325202658,1714579276548,-500.0,0.00053972,120]
[325202659,1714579276577,-1260.23,0.00053972,120]
[325202660,1714579276602,-536.44409236,0.00053972,120]
[325202661,1714579276629,-500.0,0.00053972,120]
[325202662,1714579276655,-500.0,0.00053972,120]
[325202663,1714579276682,-500.0,0.00053972,120]
[325202664,1714579276708,-500.0,0.00053972,120]
[325202665,1714579276732,-500.0,0.00053972,120]
[325202666,1714579276758,-619.26,0.00053972,120]
[325202667,1714579276783,-500.0,0.00053972,120]
[325202668,1714579276810,-503.0,0.00053972,120]
[325202669,1714579276836,-500.0,0.00053972,120]
[325202670,1714579276862,-500.0,0.00053972,120]
[325202671,1714579276887,-500.0,0.00053972,120]
[325202672,1714579276912,-500.0,0.00053972,120]
[325202673,1714579276939,-600.81,0.00053972,120]
[325202674,1714579276968,-553.57,0.00053972,120]
[325202675,1714579276994,-500.0,0.00053972,120]
[325202676,1714579277021,-812.53,0.00053972,120]
[325202677,1714579277049,-500.0,0.00053972,120]
[325202678,1714579277076,-500.0,0.00053972,120]
[325202679,1714579277103,-818.95,0.00053972,120]
[325202680,1714579277129,-500.0,0.00053972,120]
[325202681,1714579277158,-500.0,0.00053972,120]
[325202682,1714579277184,-611.71,0.00053972,120]
[325202683,1714579277215,-500.0,0.00053972,120]
[325202684,1714579277240,-500.0,0.00053972,120]
[325202685,1714579277268,-500.0,0.00053972,120]
[325202686,1714579277295,-495.23760558,0.00053972,120]
[325202687,1714579277320,-1054.7,0.00053972,120]
[325202688,1714579277346,-500.0,0.00053972,120]
[325202689,1714579277372,-911.86,0.00053972,120]
[325202690,1714579277399,-500.0,0.00053972,120]
[325202691,1714579277424,-500.0,0.00053972,120]
[325202692,1714579277454,-500.0,0.00053972,120]
[325202693,1714579277480,-549.22,0.00053972,120]
[325202694,1714579277509,-500.0,0.00053972,120]
[325202695,1714579277536,-326.59742529,0.00053972,120]
[325202696,1714579278577,513.56271106,9.999e-05,2]
[325202697,1714579328319,551.42384778,9.999e-05,2]
[325202698,1714579339394,685.50657868,9.999e-05,2]
[325202699,1714579623754,513.56271106,9.999e-05,2]
[325202741,1714579831953,-2457.03232127,0.00012202,2]
[325202743,1714579831962,-513.56271106,0.00012398,2]
[325202745,1714579831971,-167.94262328,0.00012399,2]
[325202747,1714579831981,-462.5422681,0.000125,2]
[325202749,1714579831990,-154.86061926,0.00012848,2]
[325202751,1714579831998,-154.86061926,0.00012848,2]
[325202753,1714579832007,-314.1054928,0.00013699,2]
[325202754,1714579832016,-217.406219,0.00013699,2]
[325202756,1714579832026,-474.10979508,0.00013944,2]
[325202758,1714579832036,-154.84515485,0.00014679,2]
[325202760,1714579832045,-20200.60362902,0.0001468,2]
[325202761,1714579832054,-24900.0,0.00014681,2]
[325202763,1714579832063,-206.84821855,0.00014998,2]
[325202765,1714579832072,-222.84971408,0.00015,2]
[325202767,1714579832082,-312.97578303,0.00015,2]
[325202769,1714579832091,-550.5996126,0.00016424,2]
[325202772,1714579832101,-686.03832323,0.00017488,2]
[325202773,1714579832110,-2806.69914,0.00017488,2]
[325202775,1714579832119,-717.91087502,0.00017488,2]
[325202777,1714579832129,-308.84790387,0.00017488,2]
[325202779,1714579832138,-235.83612481,0.00017488,2]
[325202781,1714579832147,-460.20366438,0.00017488,2]
[325202783,1714579832158,-890.92384481,0.00017488,2]
[325202784,1714579832167,-964.61124368,0.00017489,2]
[325202786,1714579832176,-1396.5546024,0.00017489,2]
[325202788,1714579832186,-1029.79317955,0.00018,2]
[325202789,1714579832202,-160.924131,0.00019178,2]
[325202790,1714579832211,-160.799208,0.00019178,2]
[325202791,1714579832220,-160.966445,0.00019178,2]
[325202792,1714579832229,-265.71985769,0.00019866,2]
[325202793,1714579832240,-500.0,0.00019996,2]
[325202794,1714579832250,-500.0,0.00019996,2]
[325202795,1714579832264,-500.0,0.00019996,2]
[325202796,1714579832273,-500.0,0.00019996,2]
[325202797,1714579832282,-500.0,0.00019996,2]
[325202798,1714579832291,-500.0,0.00019996,2]
[325202799,1714579832302,-500.0,0.00019996,2]
[325202800,1714579832311,-500.0,0.00019996,2]
[325202801,1714579832320,-500.0,0.00019996,2]
[325202802,1714579832330,-500.0,0.00019996,2]
[325202803,1714579832341,-500.0,0.00019996,2]
[325202804,1714579832351,-500.0,0.00019996,2]
[325202805,1714579832361,-500.0,0.00019996,2]
[325202806,1714579832371,-500.0,0.00019996,2]
[325202807,1714579832381,-197.92405221,0.00019996,2]
[325202808,1714579832391,-500.0,0.00019996,2]
[325202809,1714579832401,-500.0,0.00019996,2]
[325202810,1714579832410,-500.0,0.00019996,2]
[325202811,1714579832419,-500.0,0.00019996,2]
[325202812,1714579832429,-500.0,0.00019996,2]
[325202813,1714579832442,-500.0,0.00019996,2]
[325202814,1714579832451,-500.0,0.00019996,2]
[325202815,1714579832460,-500.0,0.00019996,2]
[325202816,1714579832470,-300.92786893,0.00019999,2]
[325202817,1714579832480,-93716.95899304,0.0002,2]
[325202818,1714579832489,-525.168551,0.0002,4]
[325202819,1714579832498,-217.406219,0.00020548,2]
[325202820,1714579832507,-288.37604007,0.00020812,2]
[325202821,1714579832516,-189.36782433,0.0002091,2]
[325202822,1714579832526,-514.23297925,0.0002091,2]
[325202823,1714579832536,-187.59715936,0.0002091,2]
[325202824,1714579832546,-241.61171692,0.0002091,2]
[325202825,1714579832556,-167.2002434,0.00020912,2]
[325202826,1714579832566,-255.55337608,0.00020912,2]
[325202827,1714579832576,-709.89305319,0.00020912,2]
[325202828,1714579832585,-233.35117561,0.00020912,2]
[325202829,1714579832595,-283.62097024,0.00020912,2]
[325202830,1714579832605,-209.0703054,0.00020912,2]
[325202831,1714579832614,-205.08723608,0.00020912,2]
[325202832,1714579832624,-521.67886641,0.00020912,2]
[325202833,1714579832633,-193.74149363,0.00020912,2]
[325202834,1714579832643,-154.92184352,0.00020912,2]
[325202835,1714579832653,-263.74213696,0.00020912,2]
[325202836,1714579832663,-3324.80542024,0.00020912,2]
[325202837,1714579832672,-470.18121475,0.00020912,2]
[325202838,1714579832682,-266.86053177,0.00020912,2]
[325202839,1714579832696,-939.34960788,0.00020912,2]
[325202840,1714579832705,-212.12287173,0.00020912,2]
[325202841,1714579832715,-603.75411,0.00020912,2]
[325202842,1714579832724,-730.61014924,0.00020912,2]
[325202843,1714579832734,-790.6024864,0.00020912,2]
[325202844,1714579832743,-166.6666684,0.00021918,2]
[325202845,1714579832753,-1007.3794895,0.00021918,2]
[325202846,1714579832762,-207.72298767,0.00022,2]
[325202847,1714579832772,-10311.36811845,0.000249,2]
[325202848,1714579832781,-863.42443304,0.00025,2]
[325202849,1714579832790,-620.0,0.00026041,2]
[325202850,1714579832800,-620.0,0.00027343,2]
[325202851,1714579832809,-196.34284079,0.00027659,2]
[325202852,1714579832852,-248.46809628,0.00020913,2]
[325202853,1714579832861,-500.0,0.00020913,2]
[325202854,1714579832870,-638.70080085,0.00020913,2]
[325202855,1714579832880,-92.03319928,0.00027659,2]
[325202856,1714579832889,-220.96622212,0.00028,2]
[325202857,1714579832898,-1751.78944315,0.0003,7]
[325202858,1714579832907,-218.0,0.0003,2]
[325202859,1714579832916,-1681.2,0.00030538,3]
[325202860,1714579832925,-447.2209758,0.00032,4]
[325202861,1714579832934,-2272.31,0.00032876,7]
[325202862,1714579832946,-2272.31,0.00032876,10]
[325202863,1714579832955,-2272.31,0.00032876,13]
[325202864,1714579832964,-2272.31,0.00032876,16]
[325202865,1714579832972,-2272.31,0.00032876,19]
[325202866,1714579832981,-466.46671286,0.00034,4]
[325202867,1714579832990,-1000.0,0.00034,34]
[325202868,1714579832999,-288.37604007,0.00034506,2]
[325202869,1714579833009,-1271.86176283,0.00034728,12]
[325202870,1714579833018,-1000.0,0.000348,3]
[325202871,1714579833028,-26910.69445433,0.000349,2]
[325202872,1714579833037,-2272.31,0.00034999,22]
[325202873,1714579833046,-5917.45193267,0.00035,4]
[325202874,1714579833056,-154.8915759,0.00035,4]
[325202875,1714579833065,-312.02456858,0.00035,10]
[325202876,1714579833074,-597.98045973,0.00035,2]
[325202877,1714579833083,-161.98182993,0.00035259,3]
[325202878,1714579833093,-2272.31,0.00035616,25]
[325202879,1714579833102,-2272.31,0.00035616,28]
[325202880,1714579833111,-5528.67659727,0.00035616,7]
[325202881,1714579833120,-429.233492,0.00035616,120]
[325202882,1714579833129,-917.98129257,0.00036,2]
[325202883,1714579833140,-5103.58039832,0.00036,2]
[325202945,1714579838061,-500.0,0.00020913,2]
[325202946,1714579838070,-28.30951704,0.00020913,2]
[325202948,1714579838081,-338.57491169,0.00020913,2]
[325202950,1714579838091,-500.0,0.00020913,2]
[325202952,1714579838099,-500.0,0.00020913,2]
[325202953,1714579838109,-711.81226179,0.00036,2]
[325202956,1714579838132,-21867.80204882,0.00036,2]
[325202957,1714579838141,-1000.0,0.00036,36]
[325202959,1714579838150,-2272.31,0.00036999,31]
[325202961,1714579838159,-10664.09300882,0.00037,5]
[325202962,1714579838168,-2049.08470554,0.00037,2]
[325202964,1714579838177,-151.0,0.00037,2]
[325202966,1714579838187,-150.84915085,0.00037474,2]
[325202967,1714579838196,-528.76512032,0.00038,2]
[325202969,1714579838205,-321.52307401,0.00038,30]
[325202971,1714579838215,-301.6983017,0.00038104,4]
[325202972,1714579838224,-603.3966034,0.00038745,7]
[325202974,1714579838235,-5000.0,0.00039,4]
[325202976,1714579838249,-1000.0,0.00039,39]
[325202978,1714579838262,-150.0,0.000391,32]
[325202980,1714579838271,-1108.44070344,0.0003915,4]
[325202981,1714579838281,-5000.0,0.00039174,2]
[325202983,1714579838290,-1206.79320679,0.00039725,30]
[325202985,1714579838299,-486.33472313,0.0004,2]
[325202986,1714579838309,-1520.24750243,0.0004,4]
[325202988,1714579838318,-5104.97968368,0.0004,4]
[325202990,1714579838329,-1000.0,0.0004,7]
[325202992,1714579838339,-956.61782471,0.0004,10]
[325202993,1714579838348,-304.2007503,0.0004,2]
[325202995,1714579838357,-612.28493,0.00040036,2]
[325202997,1714579838367,-612.28493,0.0004046,2]
[325202998,1714579838376,-612.28493,0.00040885,2]
[325203000,1714579838386,-252.7509919,0.00041,2]
[325203002,1714579838396,-581.37755277,0.00041096,31]
[325203003,1714579838405,-612.28493,0.0004131,2]
[325203004,1714579838414,-288.37604007,0.00041353,2]
[325203005,1714579838423,-2272.31,0.00041413,34]
[325203006,1714579838433,-429.233492,0.00041553,120]
[325203008,1714579838445,-150.0,0.0004156,37]
[325203009,1714579838454,-612.28493,0.00041735,2]
[325203010,1714579838464,-612.28493,0.0004216,2]
[325203011,1714579838473,-154.82968734,0.0004234,10]
[325203012,1714579838483,-612.28494,0.00042584,2]
[325203013,1714579838494,-151.0,0.00042844,3]
[325203014,1714579838504,-600.0,0.00043,2]
[325203015,1714579838514,-612.28493,0.00043009,2]
[325203016,1714579838523,-5000.0,0.00043071,2]
[325203017,1714579838533,-1007.951808,0.000434,44]
[325203018,1714579838543,-612.28493,0.00043434,2]
[325203019,1714579838553,-213.617,0.00043833,2]
[325203020,1714579838563,-612.28493,0.00043859,2]
[325203021,1714579838573,-1000.0,0.000439,44]
[325203022,1714579838583,-150.0,0.0004402,42]
[325203023,1714579838593,-612.28493,0.00044283,2]
[325203024,1714579838602,-88888.0,0.00044284,5]
[325203025,1714579838612,-2272.31,0.00044399,37]
[325203026,1714579838621,-1000.0,0.000444,44]
[325203027,1714579838630,-2272.31,0.00044483,40]
[325203028,1714579838640,-2272.31,0.00044483,43]
[325203029,1714579838649,-151.0,0.00044484,3]
[325203030,1714579838659,-578.70685953,0.00044501,2]
[325203031,1714579838670,-653.47261522,0.00044501,2]
[325203032,1714579838679,-4720.48743638,0.00044501,2]
[325203033,1714579838688,-12005.25987704,0.00044501,30]
[325203034,1714579838698,-5652.31185556,0.00044501,30]
[325203103,1714579846014,-173.22343219,0.00019994,2]
[325203104,1714579846023,-500.0,0.00019995,2]
[325203105,1714579846032,-500.0,0.00019995,2]
[325203106,1714579846042,-244.21378358,0.00019995,2]
[325203107,1714579846051,-236.31278423,0.00020913,2]
[325203161,1714580618225,291.7253838,9.999e-05,2]
[325203182,1714580681116,268.62057217,9.999e-05,2]
[325203185,1714580699100,154.82968734,9.999e-05,2]
[325203189,1714580719110,154.82968734,9.999e-05,2]
[325203192,1714580737102,154.82968734,9.999e-05,2]
[325203193,1714580751127,154.82968734,9.999e-05,2]
[325203194,1714580781302,154.82968734,9.999e-05,2]
[325203196,1714580797294,154.82968734,9.999e-05,2]
[325203197,1714580813292,154.82968734,9.999e-05,2]
[325203198,1714580835294,154.82968734,9.999e-05,2]
[325203199,1714580853296,190.05847137,9.999e-05,2]
[325203208,1714580962629,-474.10979508,0.00017752,2]
[325203209,1714580962660,-1554.74808857,0.00018687,2]
[325203210,1714580962679,-474.10979508,0.00018687,2]
[325203211,1714580962703,-428.17443762,0.00018687,2]
[325203212,1714580962713,-2028.85788365,0.00018687,2]
[325203214,1714581006519,-474.10979508,0.00017752,2]
[325203215,1714581006548,-1848.74808857,0.00018686,2]
[325203216,1714581006561,-474.10979508,0.00018686,2]
[325203217,1714581006574,-134.17443762,0.00018686,2]
[325203218,1714581006584,-189.36782433,0.00018686,2]
[325203219,1714581006594,-558.90996056,0.00018687,2]
[325203220,1714581006603,-1574.58009876,0.00018688,2]
[325203222,1714581007989,513.56271106,9.999e-05,2]
[325203223,1714581012484,18570.0,0.00025,60]
[325203255,1714581032241,-513.16921388,0.00018686,2]
[325203257,1714581032250,-474.10979508,0.00018687,2]
[325203259,1714581032259,-2457.03232127,0.00018687,2]
[325203261,1714581032269,-758.41614511,0.00018688,2]
[325203263,1714581032280,-1978.03301481,0.00018688,2]
[325203413,1714581038340,-20588.97074132,0.00018688,2]
[325203415,1714581038350,-678.8487503,0.000188,2]
[325203417,1714581038359,-150.0,0.000189,2]
[325203419,1714581038369,-160.924131,0.00019178,2]
[325203421,1714581038378,-325.63833926,0.00019701,2]
[325203423,1714581038387,-176.59551373,0.00019701,2]
[325203425,1714581038396,-247.65090044,0.00019701,2]
[325203427,1714581038405,-166.10886541,0.00019701,2]
[325203429,1714581038415,-157.13735351,0.00019701,2]
[325203431,1714581038424,-216.16208935,0.00019701,2]
[325203432,1714581038434,-1621.73271947,0.00019701,2]
[325203433,1714581038444,-212.26666393,0.00019701,2]
[325203434,1714581038453,-173.46499647,0.00019701,2]
[325203435,1714581038462,-306.00621007,0.00019702,2]
[325203436,1714581038472,-160.943638,0.0001972,2]
[325203437,1714581038481,-312.80508109,0.00020912,2]
[325203438,1714581038491,-1378.68043058,0.00020912,2]
[325203439,1714581038501,-466.16787958,0.00020912,2]
[325203440,1714581038510,-252.14316974,0.00020912,2]
[325203441,1714581038520,-156.28533307,0.00020912,2]
[325203442,1714581038529,-3407.25617524,0.00020913,2]
[325203443,1714581038538,-166.666666,0.00021918,2]
[325203444,1714581038548,-159.24114282,0.00022,2]
[325203445,1714581038557,-166.666666,0.00022431,2]
[325203446,1714581038566,-166.666666,0.00022944,2]
[325203447,1714581038576,-714.26625523,0.00023,2]
[325203448,1714581038586,-166.666666,0.00023456,2]
[325203449,1714581038597,-150.0,0.000239,2]
[325203450,1714581038606,-166.666666,0.00023969,2]
[325203451,1714581038617,-166.666666,0.00024482,2]
[325203452,1714581038626,-678.84875025,0.00027415,3]
[325203453,1714581038635,-1541.1,0.00029406,3]
[325203454,1714581038644,-238.34393763,0.0003,7]
[325203455,1714581038656,-662.85805754,0.0003,7]
[325203456,1714581038775,-850.42975383,0.0003,7]
[325203457,1714581038785,-447.2209758,0.00032,4]
[325203458,1714581038795,-466.46671286,0.00034,4]
[325203459,1714581038804,-597.98045973,0.00035,2]
[325203460,1714581038814,-1108.44070344,0.00035,4]
[325203461,1714581038823,-5917.45193267,0.00035,4]
[325203462,1714581038832,-154.84515485,0.00035,4]
[325203463,1714581038842,-214.616746,0.00035616,120]
[325203464,1714581038851,-678.84875025,0.0003603,7]
[325203465,1714581038861,-150.0,0.0003667,27]
[325203466,1714581038870,-10664.09300882,0.00037,5]
[325203467,1714581038880,-2049.08470554,0.00037,2]
[325203468,1714581038889,-321.52307401,0.00038,30]
[325203469,1714581038898,-611.48397,0.00038787,2]
[325203470,1714581038907,-164.0,0.0003898,31]
[325203471,1714581038917,-5000.0,0.00039,4]
[325203472,1714581038926,-611.48397,0.00039317,2]
[325203473,1714581038937,-611.48398,0.00039847,2]
[325203474,1714581038946,-5104.97968368,0.0004,4]
[325203475,1714581038955,-1520.24750243,0.0004,4]
[325203476,1714581038964,-393.76923353,0.00040097,30]
[325203477,1714581038974,-611.48397,0.00040378,2]